bitfinex-derivatives/quotes_BTCF0:USTF0_20241226
["timestamp","ask_amount","ask_price","bid_price","bid_amount"]
[1735210219742,0.10516437,95730.0,95703.0,0.24942953]
[1735210219743,0.052295,95719.0,95710.0,0.052299]
[1735210220134,0.10516437,95721.0,95703.0,0.00156711]
[1735210220446,0.052294,95720.0,95718.0,0.006]
[1735210220634,0.052294,95720.0,95718.0,0.007]
[1735210221035,0.052294,95720.0,95718.0,0.001]
[1735210221234,0.052294,95720.0,95710.0,0.004]
[1735210221748,0.052295,95719.0,95707.0,0.052301]
[1735210221944,0.052295,95719.0,95718.0,0.002]
[1735210222843,0.052295,95719.0,95718.0,0.003]
[1735210223447,0.058295,95719.0,95718.0,0.003]
[1735210223837,0.058295,95719.0,95718.0,0.001]
[1735210224750,0.059295,95719.0,95718.0,0.001]
[1735210225552,0.060295,95719.0,95718.0,0.001]
[1735210226237,0.008,95719.0,95718.0,0.053295]
[1735210226558,0.12466207,95735.0,95734.0,0.052287]
[1735210227146,0.052283,95741.0,95725.0,0.10516437]
[1735210227346,0.052283,95741.0,95725.0,0.15745537]
[1735210227747,0.052283,95741.0,95730.0,0.052288]
[1735210227947,0.005,95735.0,95734.0,0.001]
[1735210228551,0.057283,95741.0,95730.0,0.052288]
[1735210228945,0.052284,95739.0,95730.0,0.052288]
[1735210229147,0.10516437,95740.0,95725.0,0.003]
[1735210229352,0.052289,95729.0,95725.0,0.003]
[1735210230056,0.10516437,95740.0,95734.0,0.001]
[1735210230356,0.052286,95735.0,95734.0,0.002]
[1735210230553,0.052286,95735.0,95734.0,0.001]
[1735210230957,0.052288,95733.0,95725.0,0.003]
[1735210231158,0.11820008,95740.0,95725.0,0.002]
[1735210231346,0.052288,95732.0,95725.0,0.002]
[1735210231653,0.23706437,95750.0,95725.0,0.002]
[1735210231859,0.052284,95738.0,95734.0,0.001]
[1735210233340,0.052284,95738.0,95729.0,0.052289]
[1735210234045,0.052284,95738.0,95734.0,0.001]
[1735210234457,0.052284,95738.0,95730.0,0.052289]
[1735210235754,0.052285,95737.0,95730.0,0.052289]
[1735210236350,0.052285,95737.0,95730.0,0.053289]
[1735210236749,0.052285,95737.0,95734.0,0.001]
[1735210237258,0.052285,95737.0,95730.0,0.054289]
[1735210237954,0.23706437,95750.0,95706.0,0.096902]
[1735210237955,0.052286,95735.0,95734.0,0.001]
[1735210238344,0.10516437,95740.0,95722.0,0.052293]
[1735210238660,0.052288,95731.0,95730.0,0.001]
[1735210239541,0.052288,95731.0,95730.0,0.002]
[1735210239954,0.052288,95731.0,95730.0,0.001]
[1735210240354,0.052288,95731.0,95720.0,0.10516437]
[1735210240551,0.052288,95731.0,95730.0,0.001]
[1735210243153,0.052288,95731.0,95727.0,0.05229]
[1735210243463,0.052288,95731.0,95730.0,0.001]
[1735210244362,0.052288,95731.0,95728.0,0.052289]
[1735210245750,0.15579367,95732.0,95727.0,0.003]
[1735210245953,0.15579367,95732.0,95731.0,0.052288]
[1735210247260,0.18695241,95736.0,95731.0,0.053288]
[1735210247856,0.052288,95732.0,95731.0,0.001]
[1735210248968,0.052288,95732.0,95731.0,0.002]
[1735210249762,0.052288,95732.0,95731.0,0.001]
[1735210252463,0.01276488,95734.0,95717.0,0.052296]
[1735210252670,0.052293,95723.0,95717.0,0.052296]
[1735210252870,0.052293,95722.0,95717.0,0.052296]
[1735210253669,0.052293,95722.0,95717.0,0.053296]
[1735210253962,0.052294,95721.0,95717.0,0.054296]
[1735210255170,0.052294,95721.0,95717.0,0.002]
[1735210255373,0.052294,95721.0,95717.0,0.001]
[1735210255567,0.052294,95721.0,95717.0,0.002]
[1735210255759,0.052294,95721.0,95717.0,0.001]
[1735210255963,0.052294,95721.0,95717.0,0.002]
[1735210260178,0.052294,95720.0,95717.0,0.002]
[1735210262180,0.052295,95719.0,95717.0,0.002]
[1735210269179,0.24014762,95719.0,95717.0,0.002]
[1735210270489,0.052295,95719.0,95717.0,0.002]
[1735210273975,0.052295,95719.0,95695.0,0.052308]
[1735210274189,0.052303,95704.0,95691.0,0.05231]
[1735210274385,0.052303,95704.0,95695.0,0.01207311]
[1735210274602,0.052303,95704.0,95691.0,0.05231]
[1735210275184,0.052303,95704.0,95703.0,0.00556711]
[1735210275390,0.052303,95704.0,95703.0,0.00656711]
[1735210275691,0.052314,95684.0,95682.0,0.24794474]
[1735210275888,0.048314,95684.0,95682.0,8.232e-05]
[1735210276391,0.052319,95675.0,95674.0,0.00156784]
[1735210276995,0.051319,95675.0,95674.0,0.00156784]
[1735210277390,0.045319,95675.0,95674.0,0.00156784]
[1735210278088,0.045319,95675.0,95674.0,0.00256784]
[1735210278493,0.045319,95675.0,95674.0,0.00656784]
[1735210278892,0.045319,95675.0,95674.0,0.00256784]
[1735210279095,0.20567229,95675.0,95674.0,0.00356784]
[1735210279999,0.16035329,95675.0,95652.0,0.052331]
[1735210280307,0.052327,95660.0,95652.0,0.052331]
[1735210280793,0.10516437,95662.0,95652.0,0.052331]
[1735210280794,0.052329,95658.0,95652.0,0.052331]
[1735210281196,0.052329,95658.0,95652.0,0.056331]
[1735210281802,0.052329,95658.0,95652.0,0.052331]
[1735210281997,0.052321,95672.0,95652.0,0.004]
[1735210282299,0.15635329,95674.0,95673.0,0.05232]
[1735210282600,0.27041714,95699.0,95680.0,0.052316]
[1735210283797,0.052306,95699.0,95671.0,0.10516437]
[1735210283988,0.052306,95699.0,95689.0,0.10516437]
[1735210284792,0.052307,95697.0,95687.0,0.052312]
[1735210286001,0.053307,95697.0,95687.0,0.053312]
[1735210286396,0.001,95697.0,95687.0,0.001]
[1735210286700,0.052312,95688.0,95687.0,0.001]
[1735210287988,0.053312,95688.0,95687.0,0.001]
[1735210288905,0.055312,95688.0,95687.0,0.001]
[1735210293503,0.003,95688.0,95687.0,0.001]
[1735210301806,0.003,95688.0,95671.0,0.01201125]
[1735210302007,0.055312,95688.0,95670.0,0.10516437]
[1735210302210,0.003,95688.0,95686.0,0.052313]
[1735210303208,0.001,95688.0,95686.0,0.052313]
[1735210303410,0.29296543,95700.0,95679.0,0.052316]
[1735210303711,0.052313,95687.0,95679.0,0.052316]
[1735210304008,0.052313,95686.0,95679.0,0.052316]
[1735210304201,0.003,95688.0,95670.0,0.10516437]
[1735210304402,0.0417,95687.0,95672.0,0.05232]
[1735210304712,0.0417,95687.0,95679.0,0.001]
[1735210305095,0.0417,95687.0,95672.0,0.05232]
[1735210305502,0.10516437,95682.0,95670.0,0.001]
[1735210305708,0.052321,95672.0,95670.0,0.001]
[1735210306710,0.10516437,95682.0,95679.0,0.001]
[1735210307014,0.052325,95664.0,95652.0,0.30019342]
[1735210307198,0.052325,95664.0,95654.0,0.01172624]
[1735210309604,0.052325,95664.0,95663.0,0.00356792]
[1735210310014,0.054325,95664.0,95663.0,0.00456792]
[1735210321323,0.054325,95664.0,95636.0,0.0405]
[1735210321529,0.10516437,95646.0,95643.0,0.052336]
[1735210321730,0.052334,95647.0,95643.0,0.052336]
[1735210323119,0.052334,95647.0,95644.0,0.052335]
[1735210324824,0.10516437,95653.0,95643.0,0.006]
[1735210325027,0.052335,95645.0,95643.0,0.005]
[1735210325424,0.0383,95644.0,95643.0,0.004]
[1735210325818,0.052339,95634.0,95631.0,0.0414]
[1735210326125,0.05234,95633.0,95631.0,0.0414]
[1735210326514,0.04834,95633.0,95631.0,0.0414]
[1735210326820,0.10516437,95641.0,95624.0,0.092744]
[1735210327019,0.052343,95628.0,95624.0,0.10450956]
[1735210327228,0.048343,95628.0,95624.0,0.10450956]
[1735210327617,0.0343,95644.0,95631.0,0.052341]
[1735210327618,0.052339,95635.0,95631.0,0.052341]
[1735210328231,0.052339,95635.0,95631.0,0.056341]
[1735210328731,0.052339,95635.0,95631.0,0.059341]
[1735210329025,0.052339,95635.0,95631.0,0.057341]
[1735210329734,0.052342,95633.0,95631.0,0.005]
[1735210330032,0.052342,95633.0,95631.0,0.006]
[1735210331031,0.052342,95633.0,95631.0,0.004]
[1735210331232,0.052342,95633.0,95631.0,0.006]
[1735210331835,0.058342,95633.0,95631.0,0.003]
[1735210335631,0.0389,95632.0,95631.0,0.003]
[1735210335935,0.0389,95632.0,95623.0,0.00156841]
[1735210335936,0.052346,95624.0,95623.0,0.00156841]
[1735210337335,0.050346,95624.0,95623.0,0.00156841]
[1735210337836,0.049346,95624.0,95623.0,0.00156841]
[1735210338431,0.049346,95624.0,95623.0,0.00356841]
[1735210338635,0.052346,95624.0,95623.0,0.00356841]
[1735210339641,0.052346,95624.0,95606.0,0.04017914]
[1735210339642,0.05229052,95607.0,95606.0,7.914e-05]
[1735210341337,0.05629052,95607.0,95606.0,7.914e-05]
[1735210341731,0.052359,95601.0,95596.0,0.0389]
[1735210342039,0.052359,95601.0,95588.0,0.18683967]
[1735210343136,0.052359,95601.0,95585.0,0.01138122]
[1735210343137,0.06389256,95601.0,95585.0,0.01138122]
[1735210343731,0.06389256,95601.0,95580.0,0.05237]
[1735210343934,0.052368,95585.0,95580.0,0.05237]
[1735210344132,0.06689256,95601.0,95600.0,0.447632]
[1735210344744,0.06789256,95601.0,95600.0,0.447632]
[1735210345946,0.07089256,95601.0,95600.0,0.447632]
[1735210347637,0.07089256,95601.0,95562.0,0.18683967]
[1735210347847,0.052369,95582.0,95563.0,0.1194]
[1735210348142,0.01853356,95601.0,95600.0,0.052359]
[1735210348347,0.052334,95648.0,95581.0,0.30156889]
[1735210348348,0.15635477,95613.0,95590.0,0.10516437]
[1735210348543,0.10516437,95610.0,95590.0,0.10516437]
[1735210348750,0.052357,95605.0,95582.0,0.0783]
[1735210349046,0.052357,95605.0,95596.0,0.052361]
[1735210349246,0.052358,95604.0,95596.0,0.052361]
[1735210349551,0.052362,95596.0,95582.0,0.0783]
[1735210349848,0.052353,95612.0,95605.0,0.052356]
[1735210350046,0.052353,95612.0,95606.0,0.0381]
[1735210350434,0.052356,95607.0,95606.0,0.0381]
[1735210350639,0.052358,95603.0,95598.0,0.05236]
[1735210351244,0.05236,95600.0,95598.0,0.05236]
[1735210351747,0.05236,95600.0,95599.0,0.0381]
[1735210352051,0.005,95603.0,95599.0,0.0381]
[1735210352251,0.005,95603.0,95599.0,0.09046]
[1735210353551,0.005,95600.0,95599.0,0.09046]
[1735210353852,0.005,95600.0,95599.0,0.0381]
[1735210354052,0.052359,95601.0,95599.0,0.0381]
[1735210354254,0.052359,95601.0,95599.0,0.0391]
[1735210354849,0.052359,95601.0,95599.0,0.0381]
[1735210354850,0.005,95600.0,95599.0,0.0381]
[1735210355242,0.057359,95601.0,95599.0,0.0381]
[1735210355444,0.14616437,95620.0,95599.0,0.0381]
[1735210355445,0.10516437,95620.0,95599.0,0.0381]
[1735210355650,0.052349,95619.0,95601.0,0.052359]
[1735210355846,0.26223914,95630.0,95602.0,0.0379]
[1735210356051,0.052355,95608.0,95602.0,0.0379]
[1735210357552,0.059355,95608.0,95602.0,0.0389]
[1735210358342,0.052356,95607.0,95602.0,0.0389]
[1735210359453,0.052356,95606.0,95602.0,0.0389]
[1735210359650,0.052357,95605.0,95602.0,0.0389]
[1735210359853,0.052357,95604.0,95602.0,0.0379]
[1735210360150,0.052346,95625.0,95599.0,0.0381]
[1735210360151,0.006,95607.0,95599.0,0.0381]
[1735210360347,0.052359,95600.0,95594.0,0.052363]
[1735210360549,0.05236,95599.0,95597.0,0.00272299]
[1735210361542,0.0375,95610.0,95598.0,0.00272299]
[1735210361742,0.05636,95599.0,95598.0,0.00272299]
[1735210362654,0.05584685,95599.0,95598.0,0.00272299]
[1735210363245,0.05236,95599.0,95598.0,0.00272299]
[1735210363949,0.05736,95599.0,95598.0,0.00272299]
[1735210367649,0.06853508,95599.0,95598.0,0.00272299]
[1735210368359,0.05736,95599.0,95598.0,0.00272299]
[1735210384669,0.05736,95599.0,95578.0,0.00156923]
[1735210384877,0.052371,95579.0,95578.0,0.00156923]
[1735210385867,0.052371,95579.0,95578.0,0.00556923]
[1735210386372,0.052371,95579.0,95578.0,0.00156923]
[1735210386579,0.052371,95579.0,95578.0,0.00556923]
[1735210387671,0.052371,95579.0,95578.0,0.004]
[1735210392476,0.0638283,95579.0,95578.0,0.004]
[1735210392771,0.052377,95567.0,95566.0,0.22703967]
[1735210393375,0.052377,95567.0,95566.0,0.0402]
[1735210393578,0.25700318,95579.0,95558.0,0.18840925]
[1735210393776,0.052381,95560.0,95558.0,0.18840925]
[1735210393970,0.0404,95559.0,95558.0,0.18683967]
[1735210394174,0.0805,95559.0,95558.0,0.18683967]
[1735210394481,0.0805,95559.0,95558.0,1e-08]
[1735210394883,0.05239,95543.0,95542.0,0.00056]
[1735210395181,0.10516437,95552.0,95534.0,0.24786242]
[1735210395381,0.052395,95535.0,95534.0,0.24786242]
[1735210396273,0.12533301,95540.0,95529.0,0.00157023]
[1735210396469,0.052398,95530.0,95529.0,0.00157023]
[1735210397073,0.006,95535.0,95529.0,0.00157023]
[1735210397274,0.006,95535.0,95532.0,0.052396]
[1735210397474,0.12533301,95540.0,95529.0,0.00157023]
[1735210397475,0.052396,95533.0,95529.0,0.00157023]
[1735210397771,0.12533301,95540.0,95529.0,0.00157023]
[1735210397973,0.052397,95531.0,95529.0,0.00157023]
[1735210399775,0.056397,95531.0,95529.0,0.00157023]
[1735210401489,0.06775616,95531.0,95529.0,0.00157023]
[1735210403589,0.052402,95522.0,95518.0,0.038]
[1735210403883,0.052409,95511.0,95505.0,0.052411]
[1735210405273,0.052409,95511.0,95505.0,0.06340734]
[1735210405590,0.051409,95511.0,95505.0,0.06340734]
[1735210406085,0.10516437,95520.0,95505.0,0.01399634]
[1735210406383,0.052402,95523.0,95512.0,0.052408]
[1735210406586,0.052402,95523.0,95513.0,0.0365]
[1735210406789,0.052404,95520.0,95513.0,0.0365]
[1735210407389,0.052404,95519.0,95513.0,0.0365]
[1735210407580,0.052406,95515.0,95513.0,0.0365]
[1735210408387,0.052408,95511.0,95505.0,0.01199634]
[1735210408982,0.052408,95511.0,95505.0,0.01099634]
[1735210409183,0.052408,95511.0,95504.0,0.052412]
[1735210411591,0.052408,95511.0,95504.0,0.06346501]
[1735210412091,0.052409,95510.0,95504.0,0.06346501]
[1735210412586,0.05241,95509.0,95504.0,0.06346501]
[1735210412786,0.052411,95507.0,95504.0,0.01105301]
[1735210412987,0.052411,95507.0,95501.0,0.075]
[1735210413396,0.052412,95505.0,95501.0,0.08612588]
[1735210413587,0.052411,95507.0,95501.0,0.08612588]
[1735210413891,0.05235236,95507.0,95501.0,0.08612588]
[1735210414994,0.05235236,95507.0,95502.0,0.052413]
[1735210416200,0.052407,95514.0,95501.0,0.08612588]
[1735210416392,0.052413,95503.0,95500.0,0.1]
[1735210416698,0.052427,95476.0,95475.0,0.24786242]
[1735210417402,0.052427,95476.0,95467.0,0.052432]
[1735210417403,0.05243,95473.0,95471.0,0.24786242]
[1735210418889,0.05243,95473.0,95465.0,0.31139864]
[1735210418890,0.078,95484.0,95465.0,0.00157061]
[1735210419093,0.05243,95471.0,95465.0,0.00157061]
[1735210419497,0.05243,95471.0,95464.0,0.06356433]
[1735210420402,0.01136985,95488.0,95486.0,0.052422]
[1735210420602,0.01136985,95488.0,95470.0,0.30008205]
[1735210420603,0.00157145,95494.0,95491.0,0.052419]
[1735210420899,0.00157145,95494.0,95492.0,0.0385]
[1735210421603,0.05242,95491.0,95487.0,0.0409]
[1735210422105,0.006,95488.0,95487.0,0.0409]
[1735210422298,0.058421,95488.0,95487.0,0.0409]
[1735210422602,0.052421,95488.0,95487.0,0.0409]
[1735210423603,0.007,95488.0,95471.0,0.0787]
[1735210423900,0.052427,95476.0,95471.0,0.0385]
[1735210424303,0.10516437,95481.0,95471.0,0.0385]
[1735210424501,0.052429,95474.0,95471.0,0.0385]
[1735210424712,0.05243,95471.0,95470.0,0.24794447]
[1735210425188,0.05243,95471.0,95470.0,8.205e-05]
[1735210437219,0.052433,95465.0,95455.0,0.24786242]
[1735210438216,0.05252479,95465.0,95453.0,0.24786242]
[1735210439117,0.05252479,95465.0,95452.0,0.05244]
[1735210439516,0.0795,95469.0,95446.0,0.30030542]
[1735210439517,0.052441,95451.0,95446.0,0.30030542]
[1735210439812,9.179e-05,95450.0,95446.0,0.30030542]
[1735210440411,9.179e-05,95450.0,95446.0,0.24786242]
[1735210440726,0.052446,95443.0,95440.0,0.24786242]
[1735210441902,9.179e-05,95450.0,95433.0,0.00064]
[1735210442102,0.052448,95439.0,95432.0,0.30031442]
[1735210442318,0.05254079,95438.0,95432.0,0.30031442]
[1735210442707,0.05245,95436.0,95432.0,0.30031442]
[1735210443108,0.052451,95433.0,95432.0,0.24786242]
[1735210443708,0.004,95443.0,95433.0,0.052451]
[1735210443922,0.05244,95454.0,95433.0,0.10516437]
[1735210444120,0.23049738,95460.0,95433.0,0.10516437]
[1735210444121,0.10516437,95450.0,95444.0,0.052445]
[1735210444318,0.10516437,95450.0,95445.0,0.052444]
[1735210444910,0.05244,95453.0,95449.0,0.052442]
[1735210445918,0.005,95450.0,95449.0,0.052442]
[1735210446218,0.005,95450.0,95442.0,0.052446]
[1735210446420,0.052441,95451.0,95442.0,0.052446]
[1735210446822,0.10516437,95452.0,95442.0,0.052446]
[1735210446823,0.052444,95446.0,95442.0,0.052446]
[1735210448624,0.056444,95446.0,95442.0,0.052446]
[1735210452517,0.004,95446.0,95444.0,0.052445]
[1735210454618,0.052443,95449.0,95444.0,0.052445]
[1735210454825,0.005,95446.0,95444.0,0.052445]
[1735210455628,0.12533301,95456.0,95442.0,0.0369]
[1735210455933,0.005,95449.0,95447.0,0.052444]
[1735210457331,0.12533301,95465.0,95461.0,0.052435]
[1735210457934,0.12533301,95465.0,95462.0,0.052435]
[1735210458631,0.052432,95468.0,95462.0,0.052435]
[1735210459138,0.012,95465.0,95461.0,0.001]
[1735210459337,0.012,95465.0,95464.0,0.052434]
[1735210459738,0.009,95465.0,95464.0,0.052434]
[1735210461739,0.004,95465.0,95464.0,0.052434]
[1735210462132,0.013,95465.0,95464.0,0.053434]
[1735210464448,0.013,95465.0,95464.0,0.13474249]
[1735210465738,0.15666626,95474.0,95473.0,0.052429]
[1735210466033,0.052423,95485.0,95476.0,0.052428]
[1735210466034,0.15666626,95477.0,95476.0,0.052428]
[1735210467048,0.052425,95482.0,95476.0,0.052428]
[1735210468149,0.052425,95481.0,95476.0,0.052428]
[1735210468349,0.007,95477.0,95476.0,0.053428]
[1735210468848,0.052426,95480.0,95476.0,0.052428]
[1735210469049,0.0348,95479.0,95476.0,0.053428]
[1735210469244,0.052427,95478.0,95476.0,0.053428]
[1735210469444,0.052427,95478.0,95476.0,0.052428]
[1735210469652,0.052427,95478.0,95476.0,0.053428]
[1735210471745,0.013,95478.0,95476.0,0.053428]
[1735210473548,0.013,95478.0,95476.0,0.001]
[1735210473742,0.052427,95477.0,95476.0,0.001]
[1735210473941,0.124027,95477.0,95476.0,0.001]
[1735210474843,0.124027,95477.0,95463.0,0.052434]
[1735210474844,0.0716,95477.0,95463.0,0.052434]
[1735210475155,0.137027,95477.0,95476.0,0.001]
[1735210475848,0.131027,95477.0,95476.0,0.001]
[1735210476052,0.052428,95475.0,95467.0,0.052432]
[1735210476754,0.15677352,95475.0,95467.0,0.052432]
[1735210476956,0.052429,95474.0,95467.0,0.052432]
[1735210477852,0.20920252,95474.0,95467.0,0.052432]
[1735210478057,0.20920252,95474.0,95460.0,0.10516437]
[1735210478243,0.22020252,95474.0,95468.0,0.052432]
[1735210479063,0.15677352,95473.0,95468.0,0.052432]
[1735210480457,0.15677352,95472.0,95468.0,0.052432]
[1735210480959,0.15677352,95472.0,95468.0,0.053432]
[1735210481552,0.16077352,95472.0,95468.0,0.053432]
[1735210482153,0.16777352,95472.0,95468.0,0.053432]
[1735210482557,0.15677352,95471.0,95468.0,0.053432]
[1735210482751,0.052431,95469.0,95468.0,0.001]
[1735210484659,0.056431,95469.0,95468.0,0.001]
[1735210484855,0.21320452,95469.0,95468.0,0.001]
[1735210485055,0.052433,95467.0,95463.0,0.06139443]
[1735210486452,0.15677352,95466.0,95463.0,0.06239443]
[1735210487754,0.15677352,95466.0,95463.0,0.06139443]
[1735210487954,0.16377352,95466.0,95463.0,0.06239443]
[1735210488263,0.16677352,95466.0,95463.0,0.06239443]
[1735210489961,0.15677352,95465.0,95463.0,0.06239443]
[1735210490263,0.20920752,95465.0,95463.0,0.06239443]
[1735210491160,0.21220752,95465.0,95463.0,0.06239443]
[1735210491854,0.21220752,95465.0,95463.0,0.06139443]
[1735210492270,0.21920752,95465.0,95463.0,0.06239443]
[1735210492471,0.062434,95465.0,95463.0,0.06239443]
[1735210493681,0.01,95465.0,95463.0,0.06239443]
[1735210498484,0.16677352,95465.0,95463.0,0.06239443]
[1735210499480,0.15677352,95464.0,95463.0,0.06239443]
[1735210500686,0.15977352,95464.0,95463.0,0.06239443]
[1735210500881,0.16677352,95464.0,95463.0,0.06239443]
[1735210501592,0.05242,95490.0,95463.0,0.36239443]
[1735210501796,0.09062,95490.0,95483.0,0.052424]
[1735210502191,0.25003817,95488.0,95483.0,0.052424]
[1735210503286,0.003,95484.0,95483.0,0.052424]
[1735210503986,0.003,95484.0,95483.0,0.053424]
[1735210504191,0.09062,95490.0,95483.0,0.053424]
[1735210504496,0.007,95488.0,95483.0,0.053424]
[1735210504987,0.059421,95488.0,95483.0,0.053424]
[1735210505785,0.059421,95488.0,95484.0,0.052423]
[1735210506193,0.052421,95488.0,95484.0,0.052423]
[1735210506695,0.052422,95487.0,95484.0,0.052423]
[1735210507794,0.059422,95487.0,95484.0,0.053423]
[1735210508096,0.052423,95485.0,95484.0,0.001]
[1735210509696,0.059423,95485.0,95484.0,0.001]
[1735210510396,0.007,95485.0,95479.0,0.052426]
[1735210510596,0.052423,95484.0,95479.0,0.052426]
[1735210510785,0.052424,95483.0,95479.0,0.052426]
[1735210511999,0.052424,95483.0,95481.0,0.052425]
[1735210512190,0.007,95485.0,95484.0,0.052423]
[1735210512586,0.006,95485.0,95484.0,0.052423]
[1735210513401,0.007,95485.0,95484.0,0.052423]
[1735210527707,0.052412,95505.0,95497.0,0.052416]
[1735210528008,0.18826329,95506.0,95497.0,0.052416]
[1735210528205,0.052412,95504.0,95499.0,0.052415]
[1735210529806,0.058412,95504.0,95499.0,0.053415]
[1735210531300,0.006,95504.0,95499.0,0.053415]
[1735210531500,0.052413,95503.0,95499.0,0.053415]
[1735210532798,0.057413,95503.0,95499.0,0.052415]
[1735210533201,0.005,95503.0,95499.0,0.052415]
[1735210533511,0.052414,95502.0,95499.0,0.052415]
[1735210533897,0.052417,95496.0,95493.0,0.24013017]
[1735210534098,0.052417,95495.0,95493.0,0.24013017]
[1735210535209,0.052414,95501.0,95493.0,0.18771217]
[1735210535510,0.0403,95507.0,95493.0,0.18771217]
[1735210535699,0.18826329,95514.0,95497.0,0.13837592]
[1735210536009,0.052405,95518.0,95513.0,0.052407]
[1735210536204,0.0772,95523.0,95513.0,0.052407]
[1735210536205,0.052406,95517.0,95513.0,0.052407]
[1735210536399,0.052406,95516.0,95514.0,0.052406]
[1735210537514,0.052406,95516.0,95514.0,0.053406]
[1735210538910,0.060406,95516.0,95514.0,0.054406]
[1735210540115,0.008,95516.0,95514.0,0.054406]
[1735210542718,0.0388,95523.0,95510.0,0.0095016]
[1735210542919,0.0388,95523.0,95506.0,0.29306943]
[1735210543711,0.0388,95523.0,95520.0,0.052403]
[1735210544107,0.0388,95523.0,95513.0,0.10535726]
[1735210544321,0.0388,95523.0,95521.0,0.052402]
[1735210544912,0.0428,95523.0,95521.0,0.052402]
[1735210545611,0.0448,95523.0,95521.0,0.053402]
[1735210546120,0.0448,95523.0,95521.0,0.06280102]
[1735210547625,0.006,95523.0,95521.0,0.06280102]
[1735210548027,0.0379,95536.0,95521.0,0.01039902]
[1735210548223,0.0379,95536.0,95529.0,0.052398]
[1735210548643,0.0379,95536.0,95521.0,0.01039902]
[1735210548834,0.052399,95528.0,95521.0,0.01039902]
[1735210549138,0.0791,95527.0,95509.0,0.18771217]
[1735210549336,0.10535726,95519.0,95509.0,0.12581217]
[1735210549545,0.052409,95511.0,95509.0,0.12581217]
[1735210549938,0.10535726,95519.0,95498.0,0.052415]
[1735210549939,0.0405,95510.0,95498.0,0.052415]
[1735210550241,0.052414,95502.0,95498.0,0.052415]
[1735210551325,0.052414,95501.0,95487.0,0.0402]
[1735210551531,0.10535726,95500.0,95493.0,0.052418]
[1735210551731,0.10535726,95500.0,95494.0,0.052417]
[1735210553242,0.10535726,95500.0,95498.0,0.004]
[1735210553444,0.052414,95501.0,95498.0,0.004]
[1735210553835,0.052414,95501.0,95495.0,0.052417]
[1735210554243,0.052414,95501.0,95496.0,0.052416]
[1735210554436,0.052414,95501.0,95498.0,0.004]
[1735210555038,0.052414,95501.0,95497.0,0.052416]
[1735210555842,0.053414,95501.0,95497.0,0.052416]
[1735210556642,0.053414,95501.0,95498.0,0.004]
[1735210557034,0.053414,95501.0,95497.0,0.052416]
[1735210557236,0.052414,95501.0,95497.0,0.057416]
[1735210557742,0.052414,95501.0,95498.0,0.004]
[1735210558339,0.052414,95501.0,95497.0,0.057416]
[1735210558942,0.053414,95501.0,95497.0,0.057416]
[1735210559951,0.053414,95501.0,95498.0,0.004]
[1735210560338,0.052414,95501.0,95497.0,0.052416]
[1735210560538,0.052414,95501.0,95497.0,0.057416]
[1735210560938,0.19584668,95505.0,95498.0,0.004]
[1735210561144,0.052415,95499.0,95498.0,0.004]
[1735210561639,0.052415,95499.0,95497.0,0.057416]
[1735210562451,0.052415,95499.0,95497.0,0.005]
[1735210563046,0.15664668,95504.0,95498.0,0.004]
[1735210563242,0.052415,95499.0,95498.0,0.004]
[1735210563751,0.052413,95502.0,95497.0,0.005]
[1735210563944,0.052415,95498.0,95497.0,0.005]
[1735210564343,0.052413,95502.0,95498.0,0.004]
[1735210564548,0.053415,95499.0,95498.0,0.004]
[1735210565748,0.052415,95499.0,95498.0,0.004]
[1735210566656,0.052417,95495.0,95492.0,0.052419]
[1735210567952,0.052417,95495.0,95492.0,0.06183529]
[1735210568141,0.052417,95495.0,95492.0,0.06483529]
[1735210568342,0.15661883,95500.0,95492.0,0.01241629]
[1735210568555,0.001,95495.0,95493.0,0.052418]
[1735210569855,0.001,95495.0,95493.0,0.058418]
[1735210570340,0.001,95495.0,95493.0,0.057418]
[1735210570855,0.052414,95502.0,95493.0,0.005]
[1735210571155,0.001,95500.0,95498.0,0.052415]
[1735210571657,0.052414,95501.0,95498.0,0.052415]
[1735210572657,0.052414,95501.0,95499.0,0.052415]
[1735210573557,0.001,95500.0,95499.0,0.052415]
[1735210574058,0.001,95500.0,95499.0,0.056415]
[1735210574353,0.052414,95501.0,95499.0,0.056415]
[1735210574354,0.053414,95501.0,95499.0,0.056415]
[1735210575047,0.001,95500.0,95499.0,0.056415]
[1735210576563,0.001,95500.0,95499.0,0.052415]
[1735210576855,0.052414,95501.0,95499.0,0.056415]
[1735210576856,0.053414,95501.0,95499.0,0.056415]
[1735210577556,0.001,95500.0,95499.0,0.056415]
[1735210578245,0.052414,95501.0,95499.0,0.056415]
[1735210578447,0.15661883,95500.0,95499.0,0.056415]
[1735210579961,0.001,95500.0,95499.0,0.056415]
[1735210580364,0.001,95500.0,95499.0,0.004]
[1735210580759,0.0407,95500.0,95499.0,0.004]
[1735210580961,0.092114,95500.0,95499.0,0.005]
[1735210581448,0.0397,95500.0,95487.0,0.00925894]
[1735210581647,0.19747126,95500.0,95499.0,0.004]
[1735210581861,0.092114,95500.0,95499.0,0.004]
[1735210582553,0.092114,95500.0,95478.0,0.052426]
[1735210582752,0.10535726,95490.0,95477.0,0.24786242]
[1735210582953,0.0749,95489.0,95477.0,0.24786242]
[1735210583159,0.052421,95488.0,95487.0,0.009]
[1735210583564,0.0749,95489.0,95477.0,0.24786242]
[1735210583765,0.052426,95479.0,95478.0,0.009]
[1735210584261,0.052429,95474.0,95473.0,0.00157093]
[1735210584856,0.043429,95474.0,95473.0,0.00157093]
[1735210586167,0.040429,95474.0,95472.0,9.233e-05]
[1735210586568,0.19739712,95474.0,95472.0,9.233e-05]